bitfinex-derivatives/quotes_BNBF0:USTF0_20250211
["timestamp","ask_amount","ask_price","bid_price","bid_amount"]
[1739301360188,0.27804602,629.78,628.29,0.29209986]
[1739301360389,0.27804602,629.78,628.3,0.29209986]
[1739301360689,0.27804602,629.78,628.14,0.90430482]
[1739301360884,0.27804602,629.78,628.15,0.29209986]
[1739301361088,0.27804602,629.78,628.14,0.90430482]
[1739301361287,0.27804602,629.78,628.13,1.1852478]
[1739301361288,0.27804602,629.78,628.15,0.29209986]
[1739301361687,0.27804602,629.78,628.16,0.29209986]
[1739301361883,0.27804602,629.78,628.14,0.29209986]
[1739301362083,0.27804602,629.78,628.15,0.29209986]
[1739301362288,0.27804602,629.78,628.14,0.29209986]
[1739301362483,0.27804602,629.78,628.15,0.29209986]
[1739301362689,0.27804602,629.78,628.14,0.29209986]
[1739301362884,0.27804602,629.78,628.15,0.29209986]
[1739301363088,0.27804602,629.78,627.87,1.66023934]
[1739301363089,0.27804602,629.78,628.14,0.29209986]
[1739301363286,0.27804602,629.78,628.16,0.29209986]
[1739301363491,0.27804602,629.78,628.17,0.29209986]
[1739301363891,0.27804602,629.78,628.18,0.29209986]
[1739301364196,0.3175813,629.76,628.19,0.29209986]
[1739301364392,0.27781222,629.75,628.2,0.29219039]
[1739301364691,0.31759643,629.73,628.21,0.29219039]
[1739301364884,0.27781222,629.72,627.9,0.90456218]
[1739301365085,0.31761156,629.7,627.91,0.61070737]
[1739301365291,0.27781222,629.69,627.91,0.31851698]
[1739301365589,0.27781222,629.69,627.92,0.29219039]
[1739301369492,0.27758828,629.68,627.93,0.29227377]
[1739301369693,0.31761156,629.7,627.91,0.31851698]
[1739301369694,0.27758828,629.69,627.92,0.29227377]
[1739301369896,0.31761156,629.7,627.94,0.29227377]
[1739301369897,0.27758828,629.67,627.94,0.29227377]
[1739301370098,0.27758828,629.66,627.95,0.29227377]
[1739301370503,0.27758828,629.65,627.92,0.29227377]
[1739301370793,6.43099475,629.64,627.93,0.29227377]
[1739301370997,6.43099475,629.63,627.92,0.29227377]
[1739301371197,8.97446197,629.62,627.92,0.29227377]
[1739301371395,6.43099475,629.61,627.93,0.29227377]
[1739301371595,6.43099475,629.6,627.94,0.29227377]
[1739301371798,6.43099475,629.59,627.55,0.29227377]
[1739301371999,6.43099475,629.58,627.56,0.31869462]
[1739301372199,6.43099475,629.57,627.57,0.29244066]
[1739301372402,6.43099475,629.56,627.57,0.29244066]
[1739301372700,6.43099475,629.55,627.57,0.29244066]
[1739301372900,6.43099475,629.54,627.57,0.29244066]
[1739301373101,6.43099475,629.53,627.57,0.29244066]
[1739301373297,6.15340647,629.52,627.56,0.31869462]
[1739301373499,0.31771247,629.5,627.57,0.29244337]
[1739301373698,0.27741269,629.49,627.57,0.29244337]
[1739301374795,0.31772761,629.47,627.57,0.29244337]
[1739301375000,0.27741269,629.46,627.57,0.29244337]
[1739301375196,6.15340647,629.45,627.58,0.29244337]
[1739301375402,6.43081916,629.44,627.59,0.29244337]
[1739301375605,4.28507335,629.43,627.6,0.61111768]
[1739301375800,0.27741269,629.42,627.61,0.6111126]
[1739301375996,0.27741269,629.42,627.62,0.29244337]
[1739301376200,3.09846819,629.43,627.63,0.29244337]
[1739301376397,0.27741269,629.42,627.64,0.29244337]
[1739301376702,0.31776294,629.4,627.65,0.31864892]
[1739301376905,0.31776294,629.4,627.65,0.61099431]
[1739301377101,0.27732438,629.39,627.66,0.29234539]
[1739301377300,0.27732438,629.39,627.65,0.31864892]
[1739301377599,0.31777809,629.37,627.66,0.29234539]
[1739301377903,0.27732438,629.36,627.67,0.31863877]
[1739301378103,0.27732438,629.36,627.68,0.29234539]
[1739301378698,0.27732438,629.36,627.67,0.31863877]
[1739301378699,0.27728623,629.35,627.69,0.29235871]
[1739301378900,0.27728623,629.36,627.68,0.29235871]
[1739301379101,0.31779324,629.34,627.68,0.29235871]
[1739301379402,0.27728623,629.33,627.68,0.29235871]
[1739301380502,0.31779324,629.34,627.67,0.31863877]
[1739301380697,0.27728044,629.32,627.69,0.29237329]
[1739301380897,0.27728044,629.33,627.68,0.29237329]
[1739301381099,0.27728044,629.31,627.7,0.29237329]
[1739301381298,0.27728044,629.32,627.69,0.29237329]
[1739301381499,0.27728044,629.31,627.7,0.29237329]
[1739301381703,0.27728044,629.33,627.68,0.29237329]
[1739301382209,0.31779324,629.34,627.67,0.31863877]
[1739301382404,0.27712205,629.32,627.69,0.29238816]
[1739301382603,0.27712205,629.33,627.68,0.29238816]
[1739301382904,0.27712205,629.32,627.69,0.29238816]
[1739301383103,0.27712205,629.33,627.68,0.29238816]
[1739301383304,0.27712205,629.31,627.7,0.29238816]
[1739301383505,0.27712205,629.33,627.71,0.29238816]
[1739301383705,0.27712205,629.3,627.71,0.29238816]
[1739301383908,0.27712205,629.32,627.72,0.29238816]
[1739301384108,0.277115,629.31,627.73,0.29240563]
[1739301384606,0.277115,629.33,627.68,0.29240563]
[1739301385006,0.27704158,629.32,627.69,0.29244729]
[1739301385400,0.27704158,629.33,627.68,0.29244729]
[1739301385706,0.27704158,629.31,627.7,0.29244729]
[1739301386007,0.31779324,629.34,627.67,0.31863877]
[1739301386309,0.2769453,629.3,627.71,0.29245277]
[1739301386508,0.2769453,629.33,627.68,0.29245277]
[1739301386709,0.2769453,629.29,627.67,0.31863877]
[1739301387104,0.2769453,629.33,626.79,0.61317081]
[1739301387311,0.2769453,629.28,626.81,0.31907595]
[1739301387503,0.2769453,629.32,626.81,0.31907595]
[1739301387704,0.2769453,629.27,626.82,0.2926515]
[1739301387905,0.2769453,629.26,626.82,0.2926515]
[1739301388407,6.43035177,629.25,626.82,0.2926515]
[1739301388608,6.43035177,629.24,626.82,0.2926515]
[1739301388813,6.43035177,629.23,626.82,0.2926515]
[1739301389118,6.43035177,629.22,626.82,0.2926515]
[1739301389315,6.43035177,629.21,626.82,0.2926515]
[1739301389616,6.42995612,629.2,626.83,0.29280785]
[1739301389815,6.42995612,629.19,626.84,0.29280785]
[1739301390014,6.15340647,629.18,626.84,0.29280785]
[1739301390209,2.42229546,629.17,626.85,0.29280785]
[1739301390415,0.27654965,629.16,626.86,0.29280785]
[1739301390613,0.27654965,629.17,626.82,0.29280785]
[1739301390814,2.8210555,629.18,626.81,0.31907595]
[1739301390815,0.27654965,629.16,626.83,0.29280785]
[1739301391015,0.27654965,629.33,626.82,0.29280785]
[1739301391311,0.27652394,629.32,626.83,0.29262698]
[1739301391715,0.27652394,629.33,626.82,0.29262698]
[1739301391918,0.27652394,629.32,626.83,0.29262698]
[1739301392111,0.27652394,629.33,626.84,0.29262698]
[1739301392416,0.31779324,629.34,626.81,0.31907595]
[1739301392617,0.27659063,629.33,626.82,0.29258994]
[1739301392817,0.27659063,629.33,626.83,0.29258994]
[1739301393018,0.27659063,629.33,626.84,0.29258994]
[1739301393317,0.27659063,629.33,626.82,0.29258994]
[1739301393516,0.27659063,629.33,626.81,0.31907595]
[1739301393819,0.27659063,629.33,626.82,0.29258994]
[1739301394919,0.2765143,629.32,626.83,0.29268191]
[1739301395116,0.2765143,629.31,626.84,0.29268191]
[1739301395315,0.2765143,629.31,626.85,0.29268191]
[1739301395521,0.2765143,629.3,626.86,0.29268191]
[1739301395717,0.2765143,629.29,626.87,0.29268191]
[1739301395922,0.2765143,629.28,626.88,0.29268191]
[1739301396118,0.2765143,629.33,626.89,0.31903523]
[1739301396322,1.1879668,629.68,626.9,0.29268191]
[1739301396323,0.3178589,629.21,626.9,0.29268191]
[1739301396518,0.3178589,629.21,626.89,0.31903523]
[1739301396719,0.27675521,629.2,626.9,0.29256248]
[1739301396922,0.27675521,629.2,626.91,0.29256248]
[1739301397122,0.27675521,629.2,626.92,0.61158245]
[1739301397326,0.27675521,629.2,626.93,0.29256248]
[1739301397519,0.27675521,629.2,626.94,0.29256248]
[1739301397827,0.27675521,629.2,626.96,0.31899961]
[1739301398022,0.27675521,629.2,626.97,0.29256248]
[1739301398422,0.27675521,629.2,626.96,0.93212201]
[1739301398423,0.27675521,629.2,626.98,0.29256248]
[1739301398618,0.27675521,629.2,626.99,0.29256248]
[1739301398920,0.27675521,629.2,627.0,0.29256248]
[1739301399126,0.27675521,629.2,627.01,0.29256248]
[1739301399626,0.27675521,629.2,627.02,0.29256248]
[1739301399827,0.27675521,629.2,627.03,0.29256248]
[1739301400128,0.27675521,629.2,627.04,0.29256248]
[1739301400327,0.27675521,629.2,627.05,0.29256248]
[1739301400724,0.27675521,629.2,627.06,0.29256248]
[1739301400922,0.27675521,629.2,627.07,0.29256248]
[1739301401123,0.27675521,629.2,627.08,0.29256248]
[1739301401324,0.27675521,629.2,626.97,0.29256248]
[1739301401526,0.27675521,629.2,626.98,0.29256248]
[1739301401727,0.27675521,629.2,626.99,0.29256248]
[1739301401922,0.3178589,629.21,626.96,0.31899961]
[1739301402129,0.27664752,629.19,627.0,0.29250652]
[1739301402328,0.31791953,629.09,627.02,0.31896909]
[1739301402523,0.27664752,629.08,627.03,0.29250652]
[1739301402929,0.27664752,629.08,627.04,0.29250652]
[1739301403233,0.27664752,629.08,627.05,0.29250652]
[1739301403429,0.27664752,629.08,627.06,0.29250652]
[1739301403730,0.27660286,629.07,627.08,0.31893857]
[1739301403925,0.27660286,629.08,627.09,0.2924844]
[1739301404131,0.31793469,629.06,627.11,0.31892331]
[1739301404325,0.27660286,629.05,627.12,0.90544916]
[1739301404525,0.27660286,629.05,627.13,0.90544916]
[1739301404730,0.27660286,629.05,627.14,0.90544916]
[1739301404932,0.27660286,629.05,627.15,0.61138737]
[1739301405127,0.31793469,629.06,627.15,0.31890297]
[1739301405332,0.31793469,629.06,627.16,0.90544916]
[1739301405532,0.27661795,629.05,627.18,0.31888771]
[1739301405733,0.31794985,629.03,627.19,0.2924844]
[1739301405932,0.31794985,629.03,627.21,0.31887246]
[1739301406132,0.31794985,629.03,627.22,0.29246742]
[1739301406328,0.31794985,629.03,627.24,0.31885721]
[1739301406533,0.31794985,629.03,627.25,0.29246742]
[1739301406730,0.31794985,629.03,627.27,0.31884196]
[1739301406930,0.31794985,629.03,627.28,0.29246742]
[1739301407728,0.27659719,629.02,627.28,0.29246742]
[1739301408235,0.31794985,629.03,627.29,0.3188318]
[1739301408431,0.2766291,629.01,627.3,0.29246742]
[1739301408631,0.2766291,629.02,627.31,0.31882163]
[1739301408831,0.31796502,629.0,627.32,0.29246742]
[1739301409031,0.2766291,628.99,627.33,0.31881147]
[1739301409232,0.31798018,628.97,627.34,0.29246742]
[1739301409429,0.31798018,628.97,627.35,0.3188013]
[1739301409626,0.2766291,628.96,627.36,0.29246742]
[1739301409836,0.31799535,628.94,627.36,0.29246742]
[1739301410332,0.31799535,628.94,627.37,0.31879114]
[1739301410532,0.31799535,628.94,627.38,0.29246742]
[1739301410731,0.27654985,628.93,627.38,0.29246742]
[1739301410928,0.31799535,628.94,627.39,0.29246742]
[1739301411128,0.31799535,628.94,627.4,0.29246742]
[1739301411329,0.27649625,628.93,627.41,0.29246742]
[1739301411532,0.27649625,628.93,627.38,0.29246742]
[1739301411733,0.31799535,628.94,627.37,0.31879114]
[1739301411936,0.31799535,628.94,627.38,0.29246742]
[1739301412735,0.31799535,628.94,627.39,0.29243847]
[1739301412929,0.31799535,628.94,627.37,0.31879114]
[1739301412930,0.31799535,628.94,627.4,0.29243847]
[1739301413130,0.31799535,628.94,627.42,0.31876573]
[1739301413329,0.31799535,628.94,627.43,0.2924094]
[1739301413531,0.31799535,628.94,627.44,0.2924094]
[1739301413734,0.31799535,628.94,627.45,0.2924094]
[1739301413932,0.31799535,628.94,627.46,0.2924094]
[1739301414237,0.31799535,628.94,627.47,0.61114973]
[1739301414439,0.31799535,628.94,627.47,0.31874033]
[1739301414637,0.31799535,628.94,627.01,1.66212924]
[1739301414638,0.31799535,628.94,627.48,0.61114906]
[1739301414836,0.31799535,628.94,627.49,0.29241381]
[1739301415030,0.31799535,628.94,627.48,0.31873525]
[1739301415031,0.31799535,628.94,627.5,0.29241381]
[1739301415235,0.31799535,628.94,627.51,0.29241381]
[1739301415438,0.31799535,628.94,627.52,0.29241381]
[1739301415637,0.31799535,628.94,627.53,0.29241381]
[1739301415945,0.31799535,628.94,627.54,0.61111859]
[1739301416135,0.31799535,628.94,627.55,0.61111351]
[1739301416333,0.31799535,628.94,627.56,0.31869462]
[1739301416534,0.31799535,628.94,627.57,0.29241381]
[1739301416737,0.31799535,628.94,627.56,0.93151699]
[1739301416738,0.31799535,628.94,627.58,0.61109828]
[1739301416938,0.31799535,628.94,627.59,0.29241381]
[1739301417140,0.31799535,628.94,627.6,0.29241381]
[1739301417434,0.31799535,628.94,627.58,0.31868447]
[1739301417435,0.31799535,628.94,627.61,0.29241381]
[1739301417635,0.31799535,628.94,627.62,0.29241381]
[1739301417837,0.31799535,628.94,627.63,0.29241381]
[1739301418234,0.31799535,628.94,627.64,0.29241381]
[1739301418435,0.31799535,628.94,627.65,0.29241381]
[1739301418643,0.31799535,628.94,627.67,0.31863877]
[1739301418839,0.31799535,628.94,627.68,0.29241381]
[1739301419035,0.31799535,628.94,627.69,0.29241381]
[1739301419238,0.31799535,628.94,627.7,0.29241381]
[1739301419435,0.31799535,628.94,627.71,0.61103228]
[1739301419640,0.31799535,628.94,627.72,0.31861339]
[1739301419836,0.31799535,628.94,627.73,0.29227896]
[1739301420037,0.31799535,628.94,627.74,0.6108822]
[1739301420243,0.31799535,628.94,627.75,0.61087712]
[1739301420437,0.31799535,628.94,627.76,0.61087205]
[1739301420641,0.31799535,628.94,627.77,0.61086697]
[1739301420841,0.31799535,628.94,627.78,0.6108619]
[1739301421043,0.30995341,628.94,627.79,0.61085682]
[1739301421244,0.30995341,628.94,627.8,0.31857279]
[1739301421544,0.30995341,628.94,627.81,0.29227896]
[1739301422943,0.30995341,628.94,627.8,0.31857279]
[1739301423145,0.30995341,628.94,627.81,0.29229705]
[1739301423343,0.30995341,628.94,627.82,0.61085969]
[1739301423542,0.30995341,628.94,627.83,0.61085462]
[1739301423742,0.30995341,628.94,627.83,0.31855757]
[1739301423942,0.30995341,628.94,627.84,0.29229705]
[1739301426344,0.30995341,628.94,627.83,0.31855757]
[1739301426544,0.30995341,628.94,627.84,0.29242311]
[1739301428346,0.30995341,628.94,627.83,0.31855757]
[1739301428544,0.27701553,628.93,627.84,0.29245216]
[1739301428745,0.31800546,628.92,627.37,0.29245216]
[1739301429046,0.31800546,628.92,627.38,0.61123822]
[1739301429242,0.31800546,628.92,627.39,0.29245216]
[1739301429440,0.31800546,628.92,627.4,0.29245216]
[1739301429644,0.27712556,628.91,627.41,0.29245216]
[1739301429841,0.31800546,628.92,627.42,0.29245216]
[1739301430043,0.31800546,628.92,627.38,0.31878606]
[1739301430246,0.31800546,628.92,627.39,0.29239226]
[1739301430450,0.31800546,628.92,627.4,0.29239226]
[1739301430649,0.31800546,628.92,627.41,0.29239226]
[1739301430850,0.31800546,628.92,627.42,0.29239226]
[1739301431149,0.31800546,628.92,627.43,0.29239226]
[1739301431350,0.31800546,628.92,627.44,0.29239226]
[1739301431544,0.31800546,628.92,627.46,0.31874541]
[1739301431744,0.31800546,628.92,627.47,0.29239226]
[1739301431943,0.31800546,628.92,627.48,0.29235187]
[1739301432151,0.31800546,628.92,627.5,0.31872509]
[1739301432350,0.31800546,628.92,627.51,0.29235187]
[1739301432551,0.31800546,628.92,627.54,1.1852478]
[1739301432746,0.31800546,628.92,627.56,0.31869462]
[1739301432946,0.31800546,628.92,627.57,0.29235187]
[1739301433150,0.31800546,628.92,627.59,0.31867939]
[1739301433349,0.31800546,628.92,627.6,0.29235187]
[1739301433653,0.31800546,628.92,627.61,0.31866923]
[1739301433946,0.31800546,628.92,627.62,0.29235187]
[1739301434147,0.31800546,628.92,627.63,0.31865908]
[1739301434352,0.31800546,628.92,627.64,0.29235187]
[1739301434544,0.31800546,628.92,627.65,0.31864892]
[1739301434747,0.31800546,628.92,627.66,0.29235187]
[1739301434949,0.31800546,628.92,627.67,0.31863877]
[1739301435151,0.31800546,628.92,627.68,0.29235187]
[1739301435650,0.31800546,628.92,627.69,0.29242103]
[1739301435853,0.31800546,628.92,627.7,0.31862354]
[1739301436152,0.31800546,628.92,627.71,0.29242103]
[1739301436752,0.31800546,628.92,627.72,0.31861339]
[1739301436951,0.31800546,628.92,627.73,0.29242103]
[1739301437152,0.31800546,628.92,627.74,0.31860324]
[1739301437449,0.31800546,628.92,627.75,0.29242103]
[1739301437654,0.31800546,628.92,627.76,0.31859309]
[1739301437956,0.31800546,628.92,627.77,0.29242103]
[1739301438253,0.31800546,628.92,627.78,0.61100397]
[1739301438449,0.31800546,628.92,627.79,0.29242103]
[1739301438654,0.31800546,628.92,627.78,0.31858294]
[1739301438655,0.31800546,628.92,627.8,0.29242103]
[1739301438854,6.0904979,629.43,627.78,0.31858294]
[1739301438855,1.1879668,629.46,627.78,0.31858294]
[1739301439055,2.8210555,629.42,627.78,0.31858294]
[1739301439257,0.3177579,629.41,627.78,0.31858294]
[1739301439657,0.3177579,629.41,627.79,0.29226946]
[1739301440452,0.3177579,629.41,627.8,0.31857279]
[1739301440654,0.3177579,629.41,627.81,0.29226946]
[1739301441059,0.3177579,629.41,627.82,0.31856264]
[1739301441256,0.3177579,629.41,627.83,0.29226946]
[1739301441555,0.3177579,629.41,627.84,0.31855249]
[1739301441764,0.3177579,629.41,627.85,0.29226946]
[1739301443059,0.3177579,629.41,627.87,0.31853727]
[1739301443464,0.3177579,629.41,627.88,0.29222876]
[1739301443664,0.3177579,629.41,627.89,0.31852713]
[1739301443865,0.3177579,629.41,627.9,0.29222876]
[1739301444463,0.3177579,629.41,627.91,0.29222876]
[1739301444966,0.3177579,629.41,627.89,0.31852713]
[1739301444967,0.3177579,629.41,627.9,0.29222876]
[1739301445161,0.3177579,629.41,627.92,0.61074067]
[1739301445362,0.3177579,629.41,627.94,0.31850176]
[1739301445562,0.3177579,629.41,627.95,0.29222876]
[1739301445764,0.3177579,629.41,627.97,0.31848655]
[1739301445964,0.3177579,629.41,627.98,0.29222876]
[1739301446165,0.3177579,629.41,628.0,0.31847133]
[1739301446366,0.3177579,629.41,628.01,0.29222876]
[1739301446567,0.3177579,629.41,628.02,0.31846119]
[1739301446770,0.3177579,629.41,628.03,0.29222876]
[1739301446970,0.3177579,629.41,628.04,0.31845105]
[1739301447266,0.3177579,629.41,628.05,0.29222876]
[1739301447467,0.3177579,629.41,628.06,0.31844091]
[1739301447668,0.3177579,629.41,628.07,0.29222876]
[1739301447869,0.3177579,629.41,628.06,0.31844091]
[1739301447870,0.3177579,629.41,628.08,0.29222876]
[1739301448168,0.3177579,629.41,628.09,0.29222876]
[1739301448360,0.3177579,629.41,628.07,0.29222876]
[1739301448559,0.3177579,629.41,628.06,0.31844091]
[1739301448763,0.3177579,629.41,628.07,0.29216041]
[1739301448969,0.3177579,629.41,628.08,0.31843077]
[1739301449165,0.3177579,629.41,628.09,0.29216041]
[1739301449364,0.3177579,629.41,628.1,0.31842063]
[1739301449569,0.3177579,629.41,628.11,0.29216041]
[1739301449770,0.3177579,629.41,628.12,0.31841049]
[1739301449970,0.2769457,629.4,628.13,0.29216041]
[1739301450170,0.31776799,629.39,628.13,0.29216041]
[1739301450573,0.31776799,629.39,628.14,0.31840035]
[1739301450768,0.31776799,629.39,628.15,0.29216041]
[1739301450975,0.31776799,629.39,628.14,0.31840035]
[1739301451268,0.31776799,629.39,628.15,0.29205504]
[1739301451473,0.31776799,629.39,628.16,0.31839021]
[1739301451669,0.31776799,629.39,628.17,0.29205504]
[1739301451865,0.31776799,629.39,628.18,0.61043512]
[1739301452170,0.31776799,629.39,628.2,0.31836994]
[1739301452368,0.31776799,629.39,628.21,0.29205504]
[1739301452564,0.31776799,629.39,628.22,0.29205504]
[1739301452870,0.31776799,629.39,628.23,0.29205504]
[1739301453070,0.31776799,629.39,628.24,0.29205504]
[1739301453271,0.31776799,629.39,628.25,0.29205504]
[1739301453465,0.31776799,629.39,628.21,0.29205504]
[1739301453666,0.31776799,629.39,628.21,0.61134332]
[1739301453867,0.31776799,629.39,628.22,0.90339836]
[1739301454070,0.31776799,629.39,628.21,0.29205504]
[1739301454475,0.31776799,629.39,628.22,0.29205504]
[1739301454667,0.31776799,629.39,628.23,0.29205504]
[1739301454872,0.31776799,629.39,628.24,0.29205504]
[1739301455068,0.31776799,629.39,628.2,0.31836994]
[1739301455069,0.31776799,629.39,628.21,0.29205504]
[1739301455274,0.31776799,629.39,628.22,0.61041485]
[1739301455473,0.31776799,629.39,628.23,0.29205504]
[1739301455675,0.31776799,629.39,628.24,0.29205504]
[1739301455980,0.31776799,629.39,628.25,0.3183446]
[1739301456273,0.31776799,629.39,628.26,0.29205504]
[1739301456478,0.31776799,629.39,628.27,0.61038951]
[1739301456673,0.31776799,629.39,628.28,0.29205504]
[1739301456972,0.31776799,629.39,628.29,0.61037938]
[1739301457175,0.31776799,629.39,628.3,0.61037431]
[1739301457377,0.31776799,629.39,628.31,0.61036924]
[1739301457571,0.31776799,629.39,628.31,0.3183142]
[1739301457775,6.07900037,629.84,628.32,0.29200392]
[1739301457975,2.43790527,629.83,628.32,0.29200392]
[1739301458174,0.31755104,629.82,628.33,0.61030799]
[1739301458373,0.31755104,629.82,628.32,0.61122649]
[1739301458374,0.31755104,629.82,628.34,0.61030293]
[1739301458576,0.27731567,629.81,628.35,0.31829394]
[1739301458777,0.31756113,629.8,628.35,0.31829394]
[1739301459174,0.31756113,629.8,628.36,0.29200392]
[1739301459379,0.31756113,629.8,628.37,0.31828381]
[1739301459579,0.31756113,629.8,628.38,0.29200392]
[1739301459784,0.31756113,629.8,628.39,0.31827368]
[1739301459983,0.31756113,629.8,628.4,0.29200392]
[1739301460183,0.31756113,629.8,628.41,0.31826355]
[1739301460382,0.31756113,629.8,628.42,0.29200392]
[1739301460579,0.27724572,629.79,628.42,0.29200392]
[1739301460984,0.31757625,629.77,628.42,0.29200392]
[1739301461381,0.31757625,629.77,628.41,0.31826355]
[1739301461581,0.27715488,629.76,628.42,0.29212405]
[1739301461782,0.31759138,629.74,628.42,0.29212405]
[1739301461984,0.27715488,629.73,628.42,0.29212405]
[1739301462385,3.9586411,629.72,628.41,0.31826355]
[1739301462585,6.35608261,629.71,628.42,0.29217601]
[1739301462781,0.31759138,629.74,628.42,0.29217601]
[1739301462782,6.35608261,629.7,628.42,0.29217601]
[1739301462987,6.35608261,629.69,628.42,0.29217601]
[1739301463186,6.07900037,629.68,628.42,0.29217601]
[1739301463487,6.35608261,629.67,628.42,0.29217601]
[1739301463687,0.31763678,629.65,628.42,0.29217601]
[1739301463887,6.35608261,629.64,627.96,0.29217601]
[1739301464087,0.31765191,629.62,627.97,0.61066256]
[1739301464387,6.35608261,629.61,627.98,1.22224329]
[1739301464582,0.31766705,629.59,627.99,1.22223821]
[1739301464786,0.31766705,629.59,628.0,0.31847133]
[1739301465086,0.27719035,629.58,628.01,0.29221874]
[1739301465282,0.31768219,629.56,628.02,0.31846119]
[1739301465482,0.27719035,629.55,628.03,0.29221874]
[1739301465684,0.31769732,629.53,628.03,0.29221874]
[1739301466186,0.27717663,629.52,628.03,0.29221874]
[1739301466385,0.31771247,629.5,628.03,0.29221874]
[1739301466585,0.27716531,629.49,628.04,0.31845105]
[1739301466782,0.31772256,629.48,628.04,0.31845105]
[1739301466989,0.27716531,629.47,628.05,0.29221874]
[1739301467189,0.31773265,629.46,628.05,0.61066472]
[1739301467384,0.31773265,629.46,628.06,0.29221874]
[1739301467589,0.31773265,629.46,628.06,0.61065965]
[1739301467789,0.31773265,629.46,628.07,0.29221874]
[1739301467983,0.31773265,629.46,628.08,0.31843077]
[1739301468191,0.27716211,629.45,628.09,0.29221874]
[1739301468386,0.31774275,629.44,628.09,0.29221874]
[1739301468786,0.31774275,629.44,628.09,0.61064444]
[1739301468987,0.27713936,629.43,628.1,0.29221874]
[1739301469186,0.31775285,629.42,628.1,0.29221874]
[1739301470790,7.10411177,629.41,628.1,0.29221874]
[1739301470988,6.39530947,629.4,628.1,0.29221874]
[1739301471190,6.67242588,629.39,628.1,0.29221874]
[1739301471387,6.39531957,629.38,628.1,0.29221874]
[1739301471583,6.67243598,629.37,628.1,0.29221874]
[1739301471786,6.67244103,629.36,628.1,0.29221874]
[1739301471986,6.67244608,629.35,628.1,0.29221874]
[1739301472284,6.67240596,629.34,628.11,0.29226042]
[1739301472483,6.67241101,629.33,628.1,0.29226042]
[1739301472687,4.55241073,629.32,628.1,0.29226042]
[1739301472887,0.59487458,629.31,628.1,0.29226042]
[1739301473089,0.59487963,629.3,628.1,0.29226042]
[1739301473389,0.31781344,629.3,628.1,0.29226042]
[1739301474690,0.27710411,629.29,628.1,0.29226042]
[1739301474886,0.31782354,629.28,628.1,0.29226042]
[1739301475489,0.27707127,629.27,628.1,0.29226042]
[1739301475691,0.31783364,629.26,628.1,0.29226042]
[1739301476793,6.39538017,629.26,628.1,0.29226042]
[1739301476994,6.82700041,629.25,628.1,0.29226042]
[1739301477292,6.07754653,629.24,628.1,0.29226042]
[1739301477493,2.12000533,629.24,628.1,0.29226042]
[1739301477792,2.86945921,629.25,628.1,0.29226042]
[1739301478894,0.31783364,629.26,628.1,0.29226042]
[1739301481092,0.31783364,629.26,628.11,0.29225372]
[1739301481293,0.31783364,629.26,628.1,0.29225372]
[1739301481493,0.27705054,629.25,628.11,0.29225372]
[1739301481694,0.27705054,629.25,628.1,0.29225372]
[1739301481891,0.31784374,629.24,628.11,0.29225372]
[1739301482195,0.27705054,629.23,628.12,0.29225372]
[1739301482396,0.27705054,629.23,627.69,0.90411176]
[1739301482595,0.31785385,629.22,627.7,0.31862354]
[1739301482791,0.31785385,629.22,627.71,0.29232385]
[1739301482996,0.31785385,629.22,627.72,0.29232385]
[1739301483193,0.31785385,629.22,627.72,0.31861339]
[1739301483392,0.31785385,629.22,627.73,0.29232385]
[1739301483594,0.31785385,629.22,627.72,0.31861339]
[1739301483896,0.31785385,629.22,627.73,0.29232385]
[1739301484196,0.31785385,629.22,627.74,0.31860324]
[1739301484496,0.31785385,629.22,627.75,0.29232385]
[1739301484695,0.31785385,629.22,627.76,0.31859309]
[1739301484898,0.31785385,629.22,627.77,0.29232385]
[1739301485196,0.31785385,629.22,627.79,0.31857786]
[1739301485398,0.31785385,629.22,627.8,0.29232385]
[1739301485599,0.31785385,629.22,627.82,0.31856264]
[1739301485897,0.31785385,629.22,627.83,0.29232385]
[1739301486098,0.31785385,629.22,627.85,0.31854742]
[1739301486398,0.31785385,629.22,627.86,0.29232385]
[1739301486594,0.31785385,629.22,627.87,0.29232385]
[1739301486794,0.31785385,629.22,627.88,0.29232385]
[1739301486994,0.31785385,629.22,627.89,0.29232385]
[1739301487190,0.31785385,629.22,627.9,0.29232385]
[1739301487391,0.31785385,629.22,627.91,0.61084083]
[1739301487591,0.31785385,629.22,627.92,0.29232385]
[1739301487795,0.31785385,629.22,627.93,0.29232385]
[1739301488198,0.31785385,629.22,627.94,0.29232385]
[1739301488497,0.31785385,629.22,627.95,0.29232385]
[1739301488899,0.31785385,629.22,627.97,0.31848655]
[1739301489098,0.31785385,629.22,627.98,0.29232385]
[1739301489293,0.31785385,629.22,627.99,0.29232385]
[1739301489495,0.31785385,629.22,628.0,0.29232385]
[1739301489998,1.1879668,629.68,628.01,0.29232385]
[1739301490198,0.5949433,629.67,628.02,0.29232385]
[1739301490398,0.27731661,629.66,628.03,0.29232385]
[1739301490600,0.31763678,629.65,628.05,0.31844598]
[1739301491001,0.31763678,629.65,628.06,0.29232385]
[1739301491194,0.31763678,629.65,628.08,0.31843077]
[1739301491395,0.31763678,629.65,628.09,0.29232385]
[1739301491701,0.31763678,629.65,628.11,0.31841556]
[1739301491894,0.31763678,629.65,628.12,0.29232385]
[1739301492097,0.27734476,629.64,628.13,0.29232385]
[1739301492296,0.27734476,629.64,628.15,0.31839528]